bitfinex/quotes_ETHUSD_20250406
["timestamp","ask_amount","ask_price","bid_price","bid_amount"]
[1743968628022,7.5600175,1621.3,1620.8,19.26616]
[1743968628227,6.16843,1621.2,1620.8,19.26616]
[1743968628440,6.16843,1621.2,1620.8,13.09641]
[1743968628738,6.16843,1621.2,1620.8,13.09645]
[1743968629632,6.16827,1621.2,1620.8,6.16]
[1743968629971,6.785527,1621.1,1620.8,12.32978]
[1743968630129,6.785527,1621.1,1620.8,6.16]
[1743968630130,6.16925,1621.0,1620.8,6.16]
[1743968630827,12.954257,1621.1,1620.8,6.16]
[1743968631031,6.16921,1621.0,1620.8,6.16]
[1743968631329,6.16941,1620.9,1620.5,12.33085]
[1743968631533,6.16979,1620.8,1620.5,6.16]
[1743968631733,6.17032,1620.7,1620.5,6.16]
[1743968632330,1.583991,1620.9,1620.5,6.16]
[1743968632528,9.6685,1621.0,1620.5,13.08348]
[1743968632731,9.6685,1621.0,1620.6,6.17045]
[1743968633031,9.6685,1621.0,1620.5,13.08363]
[1743968633230,9.6685,1621.0,1620.5,13.08344]
[1743968634240,0.7645,1621.0,1620.5,13.08344]
[1743968634451,0.8022,1621.2,1620.7,6.17001]
[1743968634629,9.7032,1621.2,1620.8,6.16962]
[1743968634837,0.8022,1621.1,1620.5,12.33091]
[1743968635030,0.8022,1621.1,1620.6,6.17042]
[1743968635230,3.8022,1621.1,1620.5,12.33075]
[1743968635420,0.38022,1621.0,1620.5,12.33075]
[1743968636117,0.38022,1621.0,1620.5,18.50153]
[1743968636304,0.38022,1621.0,1620.5,12.33075]
[1743968636508,0.38022,1621.0,1620.5,6.16]
[1743968636853,0.8022,1620.9,1620.5,6.16]
[1743968637007,0.8022,1620.9,1620.5,12.33084]
[1743968637208,0.8022,1620.9,1620.5,6.16]
[1743968637567,6.16957,1620.9,1620.2,12.5624]
[1743968637706,1.419157,1620.8,1620.3,6.17167]
[1743968637904,8.896,1620.7,1620.2,12.5624]
[1743968638337,0.8022,1620.6,1620.2,6.3904]
[1743968638554,0.8022,1620.6,1620.2,6.4022]
[1743968638705,0.8022,1620.6,1620.2,0.2304]
[1743968639650,1.77202,1620.6,1620.2,6.40232]
[1743968639814,1.77202,1620.6,1620.2,12.57421]
[1743968640023,1.77202,1620.6,1620.2,0.2304]
[1743968640536,1.77202,1620.6,1620.2,6.40233]
[1743968640734,1.77202,1620.6,1620.2,0.2304]
[1743968640907,0.8022,1620.6,1620.4,6.17109]
[1743968641111,0.8064,1620.9,1620.4,6.17109]
[1743968641343,0.8064,1620.9,1620.5,6.16]
[1743968641549,0.8064,1621.1,1620.5,12.33091]
[1743968642245,0.8064,1621.0,1620.5,6.16]
[1743968643251,5.93385127,1621.1,1620.3,6.16]
[1743968643252,8.89,1620.9,1620.3,6.16]
[1743968643411,0.8064,1620.8,1620.3,6.16]
[1743968644441,0.8064,1620.8,1620.3,12.33158]
[1743968644648,0.8064,1620.8,1620.4,6.16]
[1743968644853,0.8064,1621.2,1620.6,6.17049]
[1743968645018,0.8064,1621.2,1620.6,6.16]
[1743968645459,0.8064,1621.2,1620.6,13.563498]
[1743968645667,0.8064,1621.2,1620.7,9.16]
[1743968645870,0.8064,1621.2,1620.9,6.16921]
[1743968646225,0.8064,1621.2,1620.9,6.1692]
[1743968646426,0.7986,1621.6,1621.3,6.16764]
[1743968646620,0.7986,1621.6,1621.4,6.16]
[1743968647343,0.7986,1622.1,1621.4,6.16]
[1743968648254,0.7986,1622.0,1621.4,6.16]
[1743968651673,0.7986,1622.0,1621.2,6.16]
[1743968652372,0.7986,1622.0,1621.2,7.076]
[1743968653280,0.7986,1622.0,1621.3,6.16]
[1743968654834,0.7986,1622.0,1621.1,6.16]
[1743968655035,3.55,1621.9,1621.1,6.16]
[1743968655235,0.55,1621.6,1620.7,6.61241149]
[1743968655468,0.8212,1621.3,1620.7,6.61241149]
[1743968655778,0.8212,1621.3,1620.7,6.16]
[1743968656072,0.8212,1621.3,1620.5,44.427]
[1743968656859,0.8212,1621.2,1620.5,44.427]
[1743968657994,0.8212,1621.2,1620.7,6.17007]
[1743968658140,0.8212,1621.2,1620.7,12.91142127]
[1743968658591,0.8212,1621.2,1620.9,3.0]
[1743968658961,0.797,1621.4,1621.0,6.16]
[1743968659891,0.797,1621.4,1621.0,6.63098005]
[1743968661850,0.797,1621.4,1621.0,6.16]
[1743968662199,0.797,1621.4,1620.8,6.16]
[1743968663915,0.797,1621.4,1620.8,12.32976]
[1743968664771,0.797,1621.4,1620.8,6.16]
[1743968665215,0.8151,1621.3,1620.8,6.16]
[1743968665601,3.0,1621.3,1620.8,6.16]
[1743968665801,0.8151,1621.2,1620.6,6.16]
[1743968666913,0.8151,1621.1,1620.6,6.16]
[1743968668081,0.8263,1621.5,1621.1,6.16835]
[1743968668315,0.8263,1621.5,1621.2,6.16]
[1743968669700,0.8263,1621.5,1620.9,6.16]
[1743968671889,0.55,1621.4,1620.6,6.16]
[1743968672110,0.8263,1621.4,1620.6,6.16]
[1743968673390,0.8263,1621.4,1620.6,12.94633]
[1743968673595,0.8263,1621.4,1620.6,6.16]
[1743968675250,0.8263,1621.4,1620.6,6.61800501]
[1743968677910,0.8263,1621.4,1620.6,6.16]
[1743968678111,0.7663,1621.3,1620.6,6.16]
[1743968678308,0.7663,1621.0,1620.6,6.16]
[1743968678510,0.7663,1621.0,1620.2,16.19055665]
[1743968678511,0.7663,1621.0,1620.3,12.33152]
[1743968678744,0.7663,1621.0,1620.3,6.16]
[1743968679153,0.7663,1621.0,1620.5,5.93385127]
[1743968679315,0.7663,1621.0,1620.5,12.10449127]
[1743968679511,0.7663,1621.0,1620.5,7.31013518]
[1743968679930,0.7663,1621.0,1620.5,7.77367474]
[1743968680128,0.7663,1621.0,1620.5,6.39739083]
[1743968680512,0.7663,1621.0,1620.5,12.55739083]
[1743968680917,0.7663,1621.0,1620.5,18.72823083]
[1743968682331,0.7663,1621.0,1620.5,12.55739083]
[1743968683456,0.7663,1621.0,1620.5,6.16]
[1743968683656,0.7663,1621.0,1620.3,3.09195945]
[1743968685148,0.8111,1620.8,1620.3,3.09195945]
[1743968685356,8.831,1620.7,1620.3,3.09195945]
[1743968685524,0.8831,1620.6,1620.3,3.09195945]
[1743968685720,0.8111,1620.5,1620.3,3.09195945]
[1743968686675,9.6421,1620.7,1620.3,3.09195945]
[1743968687659,9.6421,1620.7,1620.3,9.02581072]
[1743968688790,9.6421,1620.7,1620.3,15.18581072]
[1743968689090,10.60631,1620.7,1620.3,9.25195945]
[1743968689463,0.8111,1620.5,1620.2,0.2304]
[1743968695963,0.83,1620.7,1620.2,0.2304]
[1743968696160,0.83,1620.7,1620.3,6.48385127]
[1743968696478,0.83,1620.7,1620.3,5.93385127]
[1743968696677,1.7948,1620.7,1620.3,5.93385127]
[1743968696986,0.83,1620.7,1620.3,5.93385127]
[1743968697193,8.816,1621.1,1620.4,6.72119]
[1743968697348,0.83,1621.0,1620.5,6.16]
[1743968701999,0.7955,1620.9,1620.3,6.16]
[1743968702664,0.7955,1620.9,1620.2,0.2304]
[1743968703062,3.55,1620.8,1620.2,0.2304]
[1743968703268,0.7955,1620.6,1620.2,0.2304]
[1743968703568,0.7955,1620.4,1620.2,0.2304]
[1743968703964,0.7955,1620.3,1620.2,0.2304]
[1743968704289,0.7955,1620.3,1619.5,0.7665]
[1743968704290,0.7955,1620.3,1619.3,6.16]
[1743968704804,0.7955,1620.1,1619.0,44.434]
[1743968705146,0.7955,1619.8,1619.0,44.434]
[1743968705397,0.7955,1619.8,1618.9,6.16]
[1743968705764,1.3455,1619.5,1618.5,0.7665]
[1743968706075,8.804,1619.4,1618.5,6.1784]
[1743968706270,0.7511,1619.3,1618.5,5.93385127]
[1743968707098,0.7511,1619.3,1618.8,12.11112127]
[1743968707301,0.7511,1619.3,1618.9,3.0]
[1743968707462,0.7511,1619.3,1618.9,9.16]
[1743968707897,0.7511,1619.3,1618.9,6.16]
[1743968708504,0.7511,1619.3,1618.9,12.09385127]
[1743968708707,0.7511,1619.3,1618.9,6.16]
[1743968708917,0.7511,1619.3,1618.5,6.63790828]
[1743968708918,0.7511,1619.3,1618.5,12.09385127]
[1743968709105,0.6871,1619.2,1618.5,12.09385127]
[1743968709304,0.6871,1619.2,1618.5,6.16]
[1743968710415,0.6871,1619.2,1618.7,18.28917127]
[1743968710616,0.6871,1619.2,1618.8,1.3165]
[1743968710818,0.6871,1619.2,1618.8,0.7665]
[1743968711725,0.6871,1619.2,1618.7,5.93385127]
[1743968711937,0.6871,1619.2,1618.7,3.0]
[1743968712927,0.6871,1619.2,1618.7,8.93385127]
[1743968713106,0.7511,1619.3,1618.9,5.93385127]
[1743968713989,0.6871,1619.2,1618.7,8.93385127]
[1743968714194,0.6871,1619.2,1618.6,6.16]
[1743968714725,0.6871,1619.2,1618.4,12.92005127]
[1743968715031,0.6871,1619.2,1618.5,3.0]
[1743968715910,0.6871,1619.1,1618.4,6.16]
[1743968716306,1.14813212,1619.1,1618.2,50.599]
[1743968716509,0.6871,1619.0,1618.2,50.599]
[1743968716709,0.6871,1618.8,1618.2,6.16]
[1743968716927,1.63531,1618.8,1618.4,0.7533]
[1743968717115,0.6871,1618.8,1618.2,6.16]
[1743968717302,0.6871,1618.7,1617.9,6.68715127]
[1743968717655,0.6871,1618.7,1618.0,6.18014]
[1743968717830,0.6871,1618.7,1618.2,6.17951]
[1743968717993,0.6871,1618.7,1618.2,18.51904]
[1743968718198,0.6871,1618.7,1618.3,0.55]
[1743968718432,0.6871,1618.7,1618.3,3.0]
[1743968719704,0.6871,1618.7,1618.2,6.9133]
[1743968719901,0.6871,1618.7,1618.3,6.17922]
[1743968720208,0.6871,1618.7,1618.3,0.55]
[1743968720413,9.4791,1618.9,1618.4,3.0]
[1743968720838,0.6871,1618.8,1618.3,3.55]
[1743968721197,0.6871,1619.0,1618.6,6.98574]
[1743968721413,0.6871,1619.3,1618.7,15.66133127]
[1743968721611,0.6871,1619.3,1618.7,9.48385127]
[1743968722134,1.63481,1619.3,1618.9,5.93385127]
[1743968722303,0.6871,1619.3,1618.9,5.93385127]
[1743968722500,0.6871,1619.5,1619.1,6.17612]
[1743968722939,0.6871,1619.5,1619.0,10.16393991]
[1743968723404,0.5,1619.4,1619.0,10.16393991]
[1743968723604,0.5,1619.4,1619.0,9.16]
[1743968724332,0.5,1619.4,1619.2,12.10965127]
[1743968724662,0.5,1619.4,1619.3,3.0]
[1743968724835,0.5,1619.4,1619.3,15.8855]
[1743968725035,9.4731,1619.9,1619.3,15.8855]
[1743968725451,9.4731,1619.9,1619.3,6.16]
[1743968725764,0.6871,1619.7,1618.9,6.17698]
[1743968726061,0.6871,1619.7,1619.0,9.72644]
[1743968726273,0.6871,1619.7,1619.0,0.55]
[1743968726563,0.6871,1619.7,1618.9,6.16]
[1743968726918,0.6871,1619.6,1618.9,6.16]
[1743968727959,0.6871,1619.6,1619.2,6.17574]
[1743968728159,0.6871,1619.6,1619.1,0.8199]
[1743968728465,0.6871,1619.6,1618.9,12.09385127]
[1743968728966,0.6871,1619.6,1618.9,6.16]
[1743968730232,0.6871,1619.6,1618.9,13.59222222]
[1743968730433,0.6871,1619.6,1618.9,19.76913222]
[1743968730656,0.6871,1619.6,1619.1,12.11005127]
[1743968730829,0.6871,1619.6,1619.1,5.93385127]
[1743968731033,0.6871,1619.6,1618.8,12.55282218]
[1743968731254,0.30932623,1619.5,1618.8,12.55282218]
[1743968731487,0.6871,1619.4,1618.8,12.55282218]
[1743968731769,0.6871,1619.2,1618.6,6.63226837]
[1743968731973,0.6871,1619.2,1618.6,14.68481433]
[1743968732280,0.6871,1619.2,1618.7,3.0]
[1743968732772,0.6871,1619.2,1618.6,6.63226837]
[1743968732973,0.6871,1619.2,1618.8,12.11112127]
[1743968733137,0.6871,1619.2,1618.8,20.3743534]
[1743968733477,0.6871,1619.2,1618.8,5.93385127]
[1743968733775,0.6871,1619.2,1618.6,6.63226837]
[1743968734069,0.6871,1619.2,1618.6,12.81039837]
[1743968734276,0.6871,1619.2,1618.8,12.11113127]
[1743968734478,0.6871,1619.2,1618.8,5.93385127]
[1743968734653,0.6871,1619.6,1619.0,6.17663]
[1743968734840,0.2754654,1619.5,1619.0,6.17663]
[1743968735234,0.2754654,1619.5,1619.1,12.11007127]
[1743968735477,0.2754654,1619.5,1619.2,7.54556]
[1743968735634,0.2754654,1619.5,1619.2,13.70556]
[1743968736081,0.2754654,1619.5,1619.2,19.88129]
[1743968736245,0.2754654,1619.5,1619.4,12.65897127]
[1743968736460,0.6871,1619.9,1619.4,9.48385127]
[1743968736646,0.6871,1620.1,1619.7,5.93385127]
[1743968736852,0.6871,1620.1,1619.5,3.0]
[1743968737457,0.6871,1620.1,1619.4,13.10388413]
[1743968737658,0.6871,1620.1,1619.4,6.16]
[1743968737880,0.94305778,1620.0,1619.1,50.632]
[1743968738050,0.6871,1619.7,1619.1,50.632]
[1743968738250,0.6871,1619.7,1619.1,6.16]
[1743968738946,0.6871,1619.7,1619.2,0.55]
[1743968739148,1.05581,1619.7,1619.1,6.16]
[1743968739384,0.25578978,1619.6,1619.2,0.55]
[1743968739692,0.6871,1619.7,1619.1,6.16]
[1743968741361,0.6871,1619.9,1619.5,6.1747]
[1743968741577,0.6871,1619.9,1619.4,6.17509]
[1743968741578,0.6871,1619.9,1619.6,5.93385127]
[1743968741789,0.6871,1619.9,1619.4,6.17496]
[1743968741790,0.23404988,1619.8,1619.4,3.0]
[1743968742282,0.6871,1619.9,1619.4,3.0]
[1743968743059,0.6871,1619.9,1619.4,9.17488]
[1743968743260,0.6871,1619.9,1619.5,6.1747]
[1743968743465,0.6871,1619.9,1619.4,10.68592313]
[1743968743690,0.6871,1619.9,1619.4,9.17505]
[1743968744184,0.6871,1619.9,1619.5,12.34914]
[1743968744483,0.6871,1619.9,1619.4,9.64011709]
[1743968744687,0.6871,1619.9,1619.5,6.17471]
[1743968744890,0.6871,1619.9,1619.4,9.64011709]
[1743968745090,0.6871,1619.9,1619.4,15.81505709]
[1743968745294,0.6871,1619.9,1619.4,9.64007709]
[1743968745890,0.6871,1619.9,1619.4,15.80007709]
[1743968746698,0.6871,1619.9,1619.4,6.16]
[1743968747058,0.23404988,1619.8,1619.4,6.16]
[1743968747400,0.6871,1619.9,1619.4,6.16]
[1743968747710,0.6871,1619.9,1619.4,12.33507]
[1743968747711,0.23404988,1619.8,1619.4,12.33507]
[1743968747856,0.23404988,1619.8,1619.4,12.33508]
[1743968748055,0.6871,1619.9,1619.4,12.33508]
[1743968748257,0.6871,1619.9,1619.4,6.16]
[1743968749577,9.4361,1619.8,1619.4,6.16]
[1743968749905,4.01462758,1620.4,1619.4,6.16]
[1743968749906,0.6871,1619.6,1619.4,6.16]
[1743968750062,0.6871,1619.6,1619.0,5.93385127]
[1743968750262,0.6871,1619.6,1618.5,6.17855]
[1743968750263,0.6871,1619.5,1618.6,6.16]
[1743968750612,0.6871,1619.3,1618.6,6.16]
[1743968750778,8.748,1619.2,1618.6,14.16538213]
[1743968750969,0.6871,1619.1,1618.6,7.98723213]
[1743968751168,0.6871,1619.1,1618.6,6.16]
[1743968751596,0.6871,1619.1,1618.3,5.93385127]
[1743968751802,0.6871,1619.0,1618.3,12.11315127]
[1743968751969,0.92067746,1619.0,1618.4,6.17878]
[1743968752177,0.6871,1619.0,1618.5,6.17833]
[1743968752769,0.6871,1619.0,1618.5,12.35675]
[1743968753006,0.6871,1619.0,1618.5,6.17833]
[1743968753197,0.6871,1619.0,1618.5,12.35669]
[1743968753392,0.6871,1619.0,1618.5,6.17833]
[1743968753580,0.6871,1619.0,1618.6,5.93385127]
[1743968753781,0.6871,1619.0,1618.7,6.17759]
[1743968754019,0.6871,1619.2,1618.9,5.93385127]
[1743968754507,0.23357746,1619.1,1618.9,5.93385127]
[1743968754898,0.6871,1619.2,1618.8,6.16]
[1743968755216,0.23249759,1619.0,1618.8,6.16]
[1743968755433,0.6871,1619.2,1618.8,6.16]
[1743968755638,0.6871,1619.2,1618.7,5.93385127]
[1743968755639,0.23249759,1618.9,1618.7,5.93385127]
[1743968755839,0.6871,1619.1,1618.5,6.16]
[1743968756025,0.6871,1618.9,1618.2,6.16]
[1743968756535,0.6871,1618.9,1617.9,13.1074]
[1743968756536,0.6871,1618.7,1617.9,13.1074]
[1743968756709,0.6871,1618.7,1617.9,6.16]
[1743968757108,0.6871,1618.7,1617.9,12.34068]
[1743968757309,0.6871,1618.7,1617.9,6.16]
[1743968757706,0.23023522,1618.6,1617.9,6.16]
[1743968757916,0.6871,1618.4,1617.9,6.16]
[1743968758118,0.23023522,1618.5,1618.1,12.92900127]
[1743968758326,9.4271,1618.6,1618.1,12.92900127]
[1743968758327,0.6871,1618.6,1618.4,5.93385127]
[1743968758730,0.22344975,1618.5,1618.4,12.95598816]
[1743968759056,9.4271,1618.9,1618.4,19.13491816]
[1743968759215,0.22344975,1618.8,1618.4,12.95598816]
[1743968759419,0.22344975,1618.8,1618.4,13.20090689]
[1743968759964,0.22344975,1618.8,1618.4,13.20071689]
[1743968760163,0.22344975,1618.8,1618.5,6.1785]
[1743968760363,0.22344975,1618.8,1618.4,6.16]
[1743968760865,0.6871,1618.7,1618.4,6.16]
[1743968761064,0.22493676,1618.6,1618.4,6.16]
[1743968761363,0.6871,1618.7,1618.4,6.61569607]
[1743968761597,0.6871,1619.0,1618.6,6.17785]
[1743968761921,0.22480161,1618.9,1618.5,1.21156961]
[1743968762126,0.22480161,1618.9,1618.5,0.55]
[1743968762355,0.22480161,1618.9,1618.4,6.16]
[1743968762861,0.6871,1618.8,1618.0,18.52309158]
[1743968763030,3.0,1618.9,1618.0,6.16]
[1743968763031,0.6871,1618.6,1618.0,6.16]
[1743968764067,10.36451,1618.6,1618.0,12.34042]
[1743968764263,8.735,1618.6,1618.0,6.16]
[1743968764468,0.6871,1618.5,1618.0,6.16]
[1743968766682,4.19155,1619.0,1618.0,12.34046]
[1743968766683,8.733,1618.7,1618.0,12.34046]
[1743968766977,8.733,1618.7,1618.0,6.16]
[1743968767154,0.8733,1618.6,1618.0,6.16]
[1743968767358,1.09810161,1618.6,1618.0,6.16]
[1743968767743,0.8733,1618.6,1618.0,6.16]
[1743968767947,0.22480161,1618.5,1618.0,12.34034]
[1743968768152,8.732,1619.0,1618.2,6.17937]
[1743968768358,0.22480161,1618.4,1618.3,0.617937]
[1743968768684,0.8732,1618.9,1618.1,3.8311]
[1743968768981,0.22480161,1618.8,1618.1,9.16]
[1743968769386,0.22480161,1618.8,1618.1,6.16]
[1743968770289,0.68757337,1618.8,1618.1,6.16]
[1743968770455,0.22480161,1618.8,1618.1,6.16]
[1743968770650,0.22480161,1618.8,1618.1,7.394045]
[1743968770959,0.22480161,1618.8,1618.1,6.16]
[1743968771159,0.22480161,1618.8,1618.2,6.17969]
[1743968771886,8.727,1619.0,1618.2,6.17954]
[1743968772060,48.38216115,1619.2,1618.3,3.0]
[1743968772257,4.48383781,1619.1,1618.5,3.0]
[1743968772447,8.727,1619.5,1618.6,6.18268158]
[1743968772778,0.46003621,1619.2,1618.5,6.16]
[1743968772988,3.20662202,1619.4,1618.5,12.33848]
[1743968773148,0.3206622,1619.3,1618.6,0.8311]
[1743968773348,0.20662202,1619.3,1618.9,6.17679]
[1743968773548,8.725,1620.1,1619.2,6.17562]
[1743968773762,8.725,1620.1,1619.3,3.0]
[1743968774097,3.20743572,1620.0,1618.8,6.9411]
[1743968774379,3.89116115,1619.9,1619.0,6.17642]
[1743968774579,8.724,1619.8,1619.0,3.0]
[1743968774885,0.55,1619.6,1618.5,6.16]
[1743968775075,0.55,1619.6,1618.3,13.12018]
[1743968775390,0.20862192,1619.5,1618.4,9.71]
[1743968775592,8.93062192,1619.5,1618.7,0.55]
[1743968775748,0.89306219,1619.4,1618.7,6.71]
[1743968776084,1.10165023,1619.4,1618.8,9.17728]
[1743968776478,1.10165023,1619.4,1618.8,3.0]
[1743968776856,1.10165023,1619.4,1618.8,9.17739]
[1743968777264,1.10165023,1619.4,1618.8,3.0]
[1743968777465,1.10165023,1619.4,1618.7,6.16]
[1743968777855,1.10165023,1619.4,1618.7,12.33774]
[1743968778057,1.10165023,1619.4,1618.7,6.16]
[1743968778356,4.10165023,1619.4,1618.7,6.16]
[1743968778877,0.55,1619.3,1618.2,6.18268158]
[1743968779188,3.0,1619.2,1618.2,6.17943]
[1743968779388,3.0,1619.2,1618.3,6.17928]
[1743968779592,0.20760521,1619.1,1618.2,12.13446764]
[1743968779772,8.717,1619.0,1618.2,5.95503764]
[1743968779972,3.0,1618.9,1618.1,6.9217]
[1743968780158,3.67969249,1618.9,1618.1,6.16]
[1743968780881,3.0,1618.7,1617.7,6.16]
[1743968781092,0.75757131,1618.6,1617.7,6.16]
[1743968781317,3.0,1618.4,1617.7,6.16]
[1743968781781,0.20757131,1618.3,1617.7,6.16]
[1743968781980,0.20757131,1618.3,1617.4,6.9217]
[1743968782305,0.70987325,1618.3,1617.5,0.69217]
[1743968782675,0.19726416,1618.2,1617.5,0.69217]
[1743968783107,0.70987325,1618.3,1617.5,0.69217]
[1743968783612,0.19726416,1618.2,1617.5,0.69217]
[1743968783782,0.70987325,1618.3,1617.5,0.69217]
[1743968783982,0.70987325,1618.3,1617.4,6.16]
[1743968784209,0.19726416,1618.2,1617.4,6.16]
[1743968784410,3.0,1618.1,1617.1,6.16]
[1743968784612,3.0,1617.9,1617.1,6.16]
[1743968785415,7.36096042,1617.9,1616.8,6.16]
[1743968785612,0.9333602,1617.8,1616.9,0.616]
[1743968786325,4.82452135,1617.8,1616.9,0.616]
[1743968786513,4.82452135,1617.8,1616.8,6.16]
[1743968786714,6.89116115,1617.7,1616.6,50.654]
[1743968786911,3.0,1617.5,1616.3,6.9217]
[1743968787114,3.0,1617.3,1616.4,0.69217]
[1743968787316,3.0,1617.3,1616.3,6.62066299]
[1743968787317,0.18760721,1617.2,1616.3,6.16]
[1743968787498,7.44116115,1617.3,1616.1,6.16]
[1743968787699,0.73621437,1617.2,1616.1,6.16]
[1743968788026,0.55,1617.0,1616.0,44.502]
[1743968788229,3.0,1616.8,1616.0,2.30415925]
[1743968788397,0.55,1616.7,1615.7,6.16]
[1743968788592,0.7350248,1616.7,1615.7,6.16]
[1743968789094,3.0,1616.6,1615.5,6.16]
[1743968789293,0.18495681,1616.5,1615.6,0.616]
[1743968789604,3.0,1616.3,1615.5,6.16]
[1743968789797,3.0,1616.3,1615.3,6.16]
[1743968790191,0.45514413,1616.5,1616.1,6.18762]
[1743968790386,0.31224834,1617.8,1616.4,6.19002471]
[1743968790623,0.31224834,1617.8,1616.1,6.16]
[1743968790624,6.19002471,1617.4,1616.1,6.16]
[1743968790824,8.709,1617.3,1616.2,3.0]
[1743968791027,0.8709,1617.2,1616.3,6.18683]
[1743968791195,0.8709,1617.2,1616.2,3.0]
[1743968791509,0.13024281,1617.1,1616.8,6.18475]
[1743968791828,8.708,1617.5,1616.8,6.16]
[1743968792017,0.13106405,1617.0,1616.8,6.16]
[1743968792193,8.708,1617.5,1616.8,6.16]
[1743968792395,8.709,1618.0,1617.0,3.0]
[1743968792608,8.709,1618.0,1617.1,6.74002471]
[1743968792807,8.709,1618.0,1617.3,3.0]
[1743968793332,8.709,1618.0,1617.3,9.18288]
[1743968793509,9.41787325,1618.3,1617.3,9.24470457]
[1743968793703,8.707,1618.2,1617.3,3.0]
[1743968793916,0.8707,1618.1,1617.3,4.43549168]
[1743968794095,8.707,1618.1,1617.3,3.46215768]
[1743968794698,8.707,1618.1,1617.4,3.0]
[1743968794905,0.70987325,1618.3,1617.3,1.01215768]
[1743968795131,0.46517529,1619.0,1617.8,3.0]
[1743968795341,8.705,1618.9,1618.0,6.18025]
[1743968795495,8.705,1618.9,1618.1,6.18006]
[1743968795695,0.8705,1618.8,1618.0,6.18025]
[1743968795940,0.8705,1618.8,1618.2,6.17947]
[1743968796243,0.8705,1618.8,1618.4,0.55]
[1743968796533,8.704,1619.2,1618.5,12.35664]
[1743968796694,8.704,1619.2,1618.4,3.55]
[1743968796898,0.8704,1619.1,1618.4,3.0]
[1743968797199,3.8704,1619.1,1618.3,3.0]
[1743968797401,0.8704,1619.1,1618.3,3.0]
[1743968797796,3.8704,1619.1,1618.3,0.46587166]
[1743968798026,8.7,1619.0,1618.2,9.17956]
[1743968798334,0.87,1618.9,1618.3,6.1793]
[1743968798506,8.699,1619.4,1618.7,6.17778]
[1743968799107,44.523,1619.8,1618.5,3.0]
[1743968799309,44.523,1619.8,1618.7,9.17768]
[1743968799310,8.698,1619.7,1618.7,9.17768]
[1743968799515,3.0,1619.6,1618.7,9.63176085]
[1743968799708,9.16864495,1619.7,1618.7,3.45414085]
[1743968799914,0.91686449,1619.6,1618.7,9.63187085]
[1743968800118,3.91686449,1619.6,1618.7,9.63187085]
[1743968800330,0.91686449,1619.6,1619.0,6.17662]
[1743968800516,8.697,1620.1,1619.2,6.17565]
[1743968800847,8.697,1620.1,1619.5,6.17441]
[1743968801047,8.697,1620.1,1619.3,15.91515471]
[1743968801352,8.697,1620.1,1619.3,22.09048471]
[1743968801510,0.8697,1620.0,1619.4,6.1751]
[1743968802124,11.694,1620.3,1619.3,9.74002471]
[1743968802333,8.694,1620.3,1619.3,3.0]
[1743968802518,8.694,1620.3,1619.4,6.17492]
[1743968803000,8.694,1620.3,1619.4,12.34984]
[1743968803219,11.692,1620.3,1619.4,12.34984]
[1743968803414,8.692,1620.6,1619.7,6.72382]
[1743968803628,8.692,1620.6,1619.7,12.95930207]
[1743968803629,3.0,1620.5,1619.7,12.95930207]
[1743968803937,0.32084918,1621.2,1620.1,1.3431]
[1743968804153,0.96219602,1621.2,1620.8,6.19002471]
[1743968804302,0.32062944,1621.5,1620.5,9.16]
[1743968804505,3.0,1621.4,1620.5,9.16]
[1743968804735,11.59114678,1621.5,1620.5,9.16]
[1743968804945,0.46573081,1621.4,1620.4,3.0]
[1743968805237,3.0,1621.4,1619.9,6.16]
[1743968805734,0.55,1621.3,1619.9,6.16]
[1743968806240,3.55,1621.1,1619.7,6.98312471]
[1743968806436,3.55,1620.9,1619.7,6.98312471]
[1743968806606,0.355,1620.8,1619.8,0.69831247]
[1743968806815,0.82286695,1620.8,1619.7,0.45498903]
[1743968807016,0.1152981,1620.7,1619.6,12.33418]
[1743968807333,3.0,1620.5,1619.7,6.17379]
[1743968807731,3.0,1620.5,1619.6,6.16]
[1743968807958,0.13003313,1620.4,1619.6,6.16]
[1743968808121,8.682,1620.3,1619.6,6.16]
[1743968808722,3.13003313,1620.2,1619.4,0.45234859]
[1743968809022,3.0,1620.2,1619.3,6.16]
[1743968809230,3.0,1620.2,1619.1,6.16]
[1743968809423,0.12866891,1620.1,1619.1,6.776]
[1743968809833,3.55,1620.0,1618.9,6.16]
[1743968810150,3.67713336,1620.0,1618.9,6.16]
[1743968811940,3.12713336,1620.0,1619.0,0.55]
[1743968812125,8.80413336,1620.0,1619.3,0.55]
[1743968812334,8.80413336,1620.0,1619.4,6.17511]
[1743968812518,8.677,1620.3,1619.5,0.617511]
[1743968813057,3.0,1620.2,1619.5,0.617511]
[1743968813265,8.677,1620.3,1619.4,6.16]
[1743968813756,3.0,1620.2,1619.4,6.16]
[1743968814162,3.0,1620.0,1619.4,6.16]
[1743968815670,0.46285597,1620.4,1619.4,6.16]
[1743968815831,3.0,1620.2,1619.5,6.17461]
[1743968816031,3.0,1620.1,1619.6,0.617461]
[1743968816263,3.0,1620.1,1619.4,6.16]
[1743968818829,3.0,1620.1,1619.4,12.33507]
[1743968819028,3.0,1620.0,1619.4,6.16]
[1743968819831,3.0,1620.0,1619.1,10.51937]
[1743968819832,3.0,1620.0,1619.1,6.16]